fUST/lending_fUST_20251115
["ID","MTS","AMOUNT","RATE_DAILY","PERIOD"]
[394025814,1763200284956,-500.0,0.00050136,120]
[394025815,1763200284965,-500.0,0.00050136,120]
[394025816,1763200284974,-687.74,0.00050136,120]
[394025817,1763200284983,-500.0,0.00050136,120]
[394025818,1763200284991,-500.0,0.00050136,120]
[394025819,1763200285001,-554.45,0.00050136,120]
[394025820,1763200285010,-500.0,0.00050136,120]
[394025821,1763200285018,-500.0,0.00050136,120]
[394025822,1763200285027,-500.0,0.00050136,120]
[394025823,1763200285036,-500.0,0.00050136,120]
[394025824,1763200285045,-500.0,0.00050136,120]
[394025825,1763200285054,-500.0,0.00050136,120]
[394025826,1763200285063,-582.92,0.00050136,120]
[394025827,1763200285072,-504.6994176,0.00050136,120]
[394025828,1763200285081,-500.0,0.00050136,120]
[394025829,1763200285090,-590.84938894,0.00050136,120]
[394025830,1763200285099,-500.0,0.00050136,120]
[394025831,1763200285107,-500.0,0.00050136,120]
[394025832,1763200285117,-790.87,0.00050136,120]
[394025833,1763200285126,-629.47,0.00050136,120]
[394025834,1763200285135,-500.0,0.00050136,120]
[394025835,1763200285144,-500.0,0.00050136,120]
[394025836,1763200285154,-500.0,0.00050136,120]
[394025837,1763200285163,-500.0,0.00050136,30]
[394025838,1763200285172,-500.0,0.00050136,120]
[394025839,1763200285181,-673.94,0.00050136,120]
[394025840,1763200285190,-500.0,0.00050136,120]
[394025841,1763200285201,-506.23081737,0.00050136,120]
[394025842,1763200285214,-500.0,0.00050136,120]
[394025843,1763200285223,-500.0,0.00050136,120]
[394025844,1763200285233,-500.0,0.00050136,120]
[394025845,1763200285242,-758.17,0.00050136,120]
[394025846,1763200285251,-590.85,0.00050136,120]
[394025847,1763200285261,-500.0,0.00050136,120]
[394025848,1763200285274,-500.0,0.00050136,120]
[394025849,1763200285286,-500.0,0.00050136,120]
[394025850,1763200285294,-731.68,0.00050136,120]
[394025851,1763200285303,-500.0,0.00050136,120]
[394025852,1763200285312,-500.0,0.00050136,120]
[394025853,1763200285321,-571.3,0.00050136,120]
[394025854,1763200285330,-500.0,0.00050136,120]
[394025855,1763200285339,-500.0,0.00050136,120]
[394025856,1763200285349,-500.0,0.00050136,120]
[394025857,1763200285359,-500.0,0.00050136,120]
[394025858,1763200285368,-500.0,0.00050136,120]
[394025859,1763200285377,-500.0,0.00050136,120]
[394025860,1763200285387,-1090.76,0.00050136,7]
[394025861,1763200285396,-454.11987476,0.00050136,120]
[394025862,1763200285405,-503.29392232,0.00050136,120]
[394025863,1763200285414,-500.0,0.00050136,120]
[394025864,1763200285424,-500.0,0.00050136,120]
[394025865,1763200285433,-500.0,0.00050136,120]
[394025866,1763200285442,-519.9357261,0.00050136,120]
[394025867,1763200285451,-500.0,0.00050136,120]
[394025868,1763200285462,-500.0,0.00050136,120]
[394025869,1763200285471,-500.0,0.00050136,120]
[394025870,1763200285480,-3400.85,0.00050136,2]
[394025871,1763200285491,-500.0,0.00050136,120]
[394025872,1763200285501,-500.0,0.00050136,120]
[394025873,1763200285510,-500.0,0.00050136,120]
[394025874,1763200285519,-500.0,0.00050136,120]
[394025875,1763200285529,-1174.97,0.00050136,120]
[394025876,1763200285539,-500.0,0.00050136,120]
[394025877,1763200285549,-500.0,0.00050136,120]
[394025878,1763200285558,-500.0,0.00050136,120]
[394025879,1763200285567,-500.0,0.00050136,120]
[394025880,1763200285576,-618.7,0.00050136,120]
[394025881,1763200285586,-500.0,0.00050136,120]
[394025882,1763200285595,-500.0,0.00050136,120]
[394025883,1763200285604,-500.0,0.00050136,120]
[394025884,1763200285613,-500.0,0.00050136,120]
[394025885,1763200285623,-506.21,0.00050136,120]
[394025886,1763200285632,-503.87476177,0.00050136,120]
[394025887,1763200285641,-500.0,0.00050136,120]
[394025888,1763200285650,-500.0,0.00050136,120]
[394025889,1763200285660,-502.08599388,0.00050136,120]
[394025890,1763200285669,-500.0,0.00050136,120]
[394025891,1763200285678,-536.43,0.00050136,120]
[394025892,1763200285688,-505.46,0.00050136,120]
[394025893,1763200285697,-500.0,0.00050136,120]
[394025894,1763200285707,-500.0,0.00050136,120]
[394025895,1763200285716,-502.24913621,0.00050136,120]
[394025896,1763200285725,-500.0,0.00050136,120]
[394025897,1763200285734,-566.44,0.00050136,120]
[394025898,1763200285743,-500.0,0.00050136,120]
[394025899,1763200285753,-500.0,0.00050136,120]
[394025900,1763200285763,-500.0,0.00050136,120]
[394025901,1763200285772,-829.99,0.00050136,120]
[394025902,1763200285781,-500.0,0.00050136,120]
[394025903,1763200285791,-501.90729537,0.00050136,120]
[394025904,1763200285799,-500.0,0.00050136,120]
[394025905,1763200285809,-500.0,0.00050136,120]
[394025906,1763200285818,-500.0,0.00050136,120]
[394025907,1763200285827,-500.0,0.00050136,120]
[394025908,1763200285836,-500.0,0.00050136,120]
[394025909,1763200285846,-500.0,0.00050136,120]
[394025910,1763200285856,-500.0,0.00050136,120]
[394025911,1763200285867,-500.0,0.00050136,120]
[394025912,1763200285877,-500.0,0.00050136,120]
[394025913,1763200285887,-500.0,0.00050136,120]
[394025914,1763200285896,-546.38,0.00050136,120]
[394025915,1763200285907,-500.0,0.00050136,120]
[394025916,1763200285921,-785.26,0.00050136,120]
[394025917,1763200285931,-500.0,0.00050136,120]
[394025918,1763200285940,-500.0,0.00050136,120]
[394025919,1763200285950,-500.0,0.00050136,120]
[394025920,1763200285959,-500.0,0.00050136,120]
[394025921,1763200285969,-500.0,0.00050136,120]
[394025922,1763200285978,-500.0,0.00050136,120]
[394025923,1763200285987,-500.0,0.00050136,120]
[394025924,1763200285996,-500.0,0.00050136,60]
[394025925,1763200286006,-500.0,0.00050136,120]
[394025926,1763200286015,-500.0,0.00050136,120]
[394025927,1763200286025,-500.0,0.00050136,120]
[394025928,1763200286034,-546.09873914,0.00050136,120]
[394025929,1763200286044,-500.0,0.00050136,120]
[394025930,1763200286053,-500.0,0.00050136,120]
[394025931,1763200286064,-500.0,0.00050136,120]
[394025932,1763200286073,-500.0,0.00050136,120]
[394025933,1763200286082,-500.0,0.00050136,120]
[394025934,1763200286091,-500.0,0.00050136,120]
[394025935,1763200286100,-500.0,0.00050136,120]
[394025936,1763200286109,-500.0,0.00050136,120]
[394025937,1763200286118,-500.0,0.00050136,120]
[394025938,1763200286128,-500.0,0.00050136,120]
[394025939,1763200286138,-500.0,0.00050136,120]
[394025940,1763200286147,-500.0,0.00050136,120]
[394025941,1763200286156,-571.83220613,0.00050136,120]
[394025942,1763200286165,-500.0,0.00050136,120]
[394025943,1763200286174,-440.24521775,0.00050136,120]
[394025944,1763200286184,-500.0,0.00050136,120]
[394025945,1763200286196,-532.71147475,0.00050136,120]
[394025946,1763200286210,-500.0,0.00050136,120]
[394025947,1763200286220,-500.0,0.00050136,120]
[394025948,1763200286229,-500.0,0.00050136,7]
[394025949,1763200286239,-500.0,0.00050136,120]
[394025950,1763200286254,-500.0,0.00050136,120]
[394025951,1763200286263,-500.0,0.00050136,120]
[394025952,1763200286274,-500.0,0.00050136,120]
[394025953,1763200286284,-500.0,0.00050136,120]
[394025954,1763200286294,-500.0,0.00050136,120]
[394025955,1763200286303,-500.0,0.00050136,120]
[394025956,1763200286312,-570.1499824,0.00050136,120]
[394025957,1763200286322,-502.20301606,0.00050136,120]
[394025958,1763200286331,-500.0,0.00050136,120]
[394025959,1763200286340,-500.0,0.00050136,120]
[394025960,1763200286349,-500.0,0.00050136,120]
[394025961,1763200286358,-1165.61,0.00050136,120]
[394025962,1763200286367,-501.5383936,0.00050136,120]
[394025963,1763200286376,-500.0,0.00050136,120]
[394025964,1763200286385,-500.0,0.00050136,120]
[394025965,1763200286395,-500.0,0.00050136,120]
[394025966,1763200286404,-629.76,0.00050136,120]
[394025967,1763200286419,-500.0,0.00050136,120]
[394025968,1763200286430,-500.0,0.00050136,120]
[394025969,1763200286439,-511.51,0.00050136,2]
[394025970,1763200286449,-500.0,0.00050136,120]
[394025971,1763200286458,-215.09075046,0.00050136,120]
[394025972,1763200286467,-500.0,0.00050136,120]
[394025973,1763200286477,-500.0,0.00050136,120]
[394025974,1763200286486,-500.0,0.00050136,120]
[394025975,1763200286499,-500.0,0.00050136,120]
[394025976,1763200286509,-500.0,0.00050136,120]
[394025977,1763200286518,-303.97590145,0.00050136,120]
[394025978,1763200286527,-500.0,0.00050136,120]
[394025979,1763200286537,-500.0,0.00050136,120]
[394025980,1763200286547,-500.0,0.00050136,120]
[394025981,1763200286556,-500.0,0.00050136,120]
[394025982,1763200286567,-503.79529208,0.00050136,120]
[394025983,1763200286577,-515.28,0.00050136,120]
[394025984,1763200286587,-500.0,0.00050136,120]
[394025985,1763200286596,-504.67463987,0.00050136,120]
[394025986,1763200286606,-500.0,0.00050136,120]
[394025987,1763200286617,-500.0,0.00050136,120]
[394025988,1763200286627,-500.0,0.00050136,120]
[394025989,1763200286637,-500.0,0.00050136,120]
[394025990,1763200286647,-500.0,0.00050136,120]
[394025991,1763200286656,-500.0,0.00050136,2]
[394025992,1763200286666,-500.0,0.00050136,120]
[394025993,1763200286675,-500.0,0.00050136,120]
[394025994,1763200286684,-500.0,0.00050136,120]
[394025995,1763200286693,-958.77,0.00050136,120]
[394025996,1763200286703,-500.0,0.00050136,120]
[394025997,1763200286713,-501.94912574,0.00050136,120]
[394025998,1763200286723,-500.0,0.00050136,120]
[394025999,1763200286732,-500.0,0.00050136,120]
[394026000,1763200286741,-500.0,0.00050136,120]
[394026001,1763200286753,-500.0,0.00050136,120]
[394026002,1763200286763,-504.31092776,0.00050136,120]
[394026003,1763200286772,-500.0,0.00050136,120]
[394026004,1763200286782,-500.0,0.00050136,120]
[394026005,1763200286791,-500.0,0.00050136,120]
[394026006,1763200286801,-500.0,0.00050136,120]
[394026007,1763200286811,-500.0,0.00050136,120]
[394026008,1763200286960,-500.0,0.00050136,120]
[394026009,1763200286992,-500.0,0.00050136,120]
[394026010,1763200287006,-500.0,0.00050136,120]
[394026011,1763200287015,-500.0,0.00050136,120]
[394026012,1763200287025,-500.0,0.00050136,120]
[394026013,1763200287035,-582.50519174,0.00050136,10]
[394026014,1763200287044,-500.0,0.00050136,120]
[394026015,1763200287054,-500.0,0.00050136,120]
[394026016,1763200287063,-500.0,0.00050136,120]
[394026017,1763200287073,-500.0,0.00050136,120]
[394026018,1763200287082,-500.0,0.00050136,120]
[394026019,1763200287092,-500.0,0.00050136,120]
[394026020,1763200287101,-500.0,0.00050136,120]
[394026021,1763200287110,-500.0,0.00050136,120]
[394026022,1763200287120,-500.0,0.00050136,120]
[394026023,1763200287130,-607.54023899,0.00050136,120]
[394026024,1763200287139,-500.0,0.00050136,120]
[394026025,1763200287148,-500.0,0.00050136,120]
[394026026,1763200287158,-500.0,0.00050136,120]
[394026027,1763200287167,-500.0,0.00050136,120]
[394026028,1763200287178,-503.75418868,0.00050136,120]
[394026029,1763200287187,-500.0,0.00050136,120]
[394026030,1763200287197,-501.69543932,0.00050136,120]
[394026031,1763200287210,-500.0,0.00050136,120]
[394026032,1763200287219,-500.0,0.00050136,120]
[394026033,1763200287229,-503.0783147,0.00050136,120]
[394026034,1763200287239,-500.0,0.00050136,120]
[394026035,1763200287250,-531.24,0.00050136,120]
[394026036,1763200287259,-504.25844954,0.00050136,120]
[394026037,1763200287269,-500.0,0.00050136,120]
[394026038,1763200287279,-500.0,0.00050136,120]
[394026039,1763200287289,-524.27049333,0.00050136,120]
[394026040,1763200287298,-500.0,0.00050136,120]
[394026041,1763200287307,-1312.52,0.00050136,120]
[394026042,1763200287316,-666.72,0.00050136,120]
[394026043,1763200287326,-500.0,0.00050136,120]
[394026044,1763200287347,-500.0,0.00050136,120]
[394026045,1763200287357,-501.97375345,0.00050136,120]
[394026046,1763200287367,-500.0,0.00050136,120]
[394026047,1763200287376,-501.30758505,0.00050136,120]
[394026048,1763200287385,-500.0,0.00050136,120]
[394026049,1763200287395,-500.0,0.00050136,120]
[394026050,1763200287404,-500.0,0.00050136,120]
[394026051,1763200287413,-500.0,0.00050136,120]
[394026052,1763200287422,-500.0,0.00050136,120]
[394026053,1763200287432,-500.0,0.00050136,120]
[394026054,1763200287441,-505.97,0.00050136,120]
[394026055,1763200287451,-500.0,0.00050136,120]
[394026056,1763200287461,-507.65,0.00050136,2]
[394026057,1763200287471,-502.83468836,0.00050136,120]
[394026058,1763200287480,-500.0,0.00050136,120]
[394026059,1763200287490,-655.84,0.00050136,120]
[394026060,1763200287501,-526.44688066,0.00050136,120]
[394026061,1763200287515,-500.0,0.00050136,120]
[394026062,1763200287524,-500.0,0.00050136,120]
[394026063,1763200287534,-500.0,0.00050136,120]
[394026064,1763200287544,-566.68,0.00050136,120]
[394026065,1763200287553,-500.0,0.00050136,120]
[394026066,1763200287563,-500.0,0.00050136,120]
[394026067,1763200287572,-500.0,0.00050136,120]
[394026068,1763200287581,-629.45,0.00050136,120]
[394026069,1763200287591,-500.0,0.00050136,120]
[394026070,1763200287600,-500.0,0.00050136,120]
[394026071,1763200287610,-500.0,0.00050136,120]
[394026072,1763200287620,-500.0,0.00050136,120]
[394026073,1763200287630,-532.44,0.00050136,120]
[394026074,1763200287640,-517.42,0.00050136,120]
[394026075,1763200287649,-500.0,0.00050136,120]
[394026076,1763200287659,-500.0,0.00050136,120]
[394026077,1763200287668,-505.03764014,0.00050136,120]
[394026078,1763200287678,-511.06558624,0.00050136,120]
[394026079,1763200287689,-500.0,0.00050136,120]
[394026080,1763200287698,-500.0,0.00050136,120]
[394026081,1763200287709,-500.0,0.00050136,120]
[394026082,1763200287718,-512.08,0.00050136,120]
[394026083,1763200287728,-948.59,0.00050136,120]
[394026084,1763200287738,-500.0,0.00050136,120]
[394026085,1763200287750,-500.0,0.00050136,120]
[394026086,1763200287759,-500.0,0.00050136,120]
[394026087,1763200287768,-500.0,0.00050136,120]
[394026088,1763200287778,-500.0,0.00050136,120]
[394026089,1763200287787,-1011.89,0.00050136,120]
[394026090,1763200287796,-500.0,0.00050136,120]
[394026091,1763200287805,-875.77,0.00050136,120]
[394026092,1763200287815,-500.0,0.00050136,120]
[394026093,1763200287824,-500.0,0.00050136,120]
[394026094,1763200287833,-500.0,0.00050136,120]
[394026095,1763200287842,-500.0,0.00050136,120]
[394026096,1763200287852,-500.0,0.00050136,120]
[394026097,1763200287861,-500.0,0.00050136,120]
[394026098,1763200287870,-500.0,0.00050136,120]
[394026099,1763200287879,-500.0,0.00050136,120]
[394026100,1763200287888,-500.0,0.00050136,120]
[394026101,1763200287897,-500.0,0.00050136,120]
[394026102,1763200287906,-500.0,0.00050136,120]
[394026103,1763200287915,-604.95,0.00050136,120]
[394026104,1763200287925,-500.0,0.00050136,120]
[394026105,1763200287935,-500.0,0.00050136,120]
[394026106,1763200287944,-500.0,0.00050136,120]
[394026107,1763200287953,-500.0,0.00050136,120]
[394026108,1763200287962,-500.0,0.00050136,120]
[394026109,1763200287970,-564.94,0.00050136,120]
[394026110,1763200287979,-500.0,0.00050136,120]
[394026111,1763200287988,-500.0,0.00050136,120]
[394026112,1763200287998,-500.0,0.00050136,120]
[394026113,1763200288007,-500.0,0.00050136,120]
[394026114,1763200288016,-1119.68,0.00050136,120]
[394026115,1763200288026,-500.0,0.00050136,120]
[394026116,1763200288035,-500.0,0.00050136,120]
[394026117,1763200288044,-500.0,0.00050136,120]
[394026118,1763200288054,-1259.05,0.00050136,120]
[394026119,1763200288063,-865.15,0.00050136,120]
[394026120,1763200288072,-500.0,0.00050136,120]
[394026121,1763200288081,-500.0,0.00050136,2]
[394026122,1763200288090,-511.44553065,0.00050136,120]
[394026123,1763200288100,-503.3915341,0.00050136,120]
[394026124,1763200288109,-500.0,0.00050136,120]
[394026125,1763200288118,-955.73,0.00050136,120]
[394026126,1763200288127,-500.0,0.00050136,120]
[394026127,1763200288136,-500.0,0.00050136,120]
[394026128,1763200288145,-500.0,0.00050136,120]
[394026129,1763200288154,-500.0,0.00050136,120]
[394026130,1763200288164,-500.0,0.00050136,120]
[394026131,1763200288173,-500.0,0.00050136,21]
[394026132,1763200288182,-500.0,0.00050136,120]
[394026133,1763200288191,-500.0,0.00050136,120]
[394026134,1763200288205,-500.0,0.00050136,120]
[394026135,1763200288214,-500.0,0.00050136,120]
[394026136,1763200288224,-500.0,0.00050136,120]
[394026137,1763200288235,-505.50938354,0.00050136,120]
[394026138,1763200288248,-1298.83,0.00050136,120]
[394026139,1763200288258,-500.0,0.00050136,7]
[394026140,1763200288267,-500.0,0.00050136,120]
[394026141,1763200288277,-500.0,0.00050136,120]
[394026142,1763200288286,-687.91,0.00050136,120]
[394026143,1763200288295,-500.0,0.00050136,120]
[394026144,1763200288304,-500.0,0.00050136,120]
[394026145,1763200288312,-500.0,0.00050136,120]
[394026146,1763200288321,-500.0,0.00050136,120]
[394026147,1763200288330,-500.0,0.00050136,120]
[394026148,1763200288339,-1584.66,0.00050136,120]
[394026149,1763200288349,-500.0,0.00050136,120]
[394026150,1763200288359,-500.0,0.00050136,120]
[394026151,1763200288369,-500.0,0.00050136,120]
[394026152,1763200288378,-625.34,0.00050136,120]
[394026153,1763200288387,-500.0,0.00050136,120]
[394026154,1763200288396,-500.0,0.00050136,120]
[394026155,1763200288405,-500.0,0.00050136,120]
[394026156,1763200288414,-500.0,0.00050136,120]
[394026157,1763200288423,-626.26,0.00050136,120]
[394026158,1763200288432,-500.0,0.00050136,120]
[394026159,1763200288442,-500.0,0.00050136,120]
[394026160,1763200288452,-500.0,0.00050136,120]
[394026161,1763200288461,-776.15,0.00050136,120]
[394026162,1763200288470,-500.0,0.00050136,120]
[394026163,1763200288479,-1059.33,0.00050136,120]
[394026164,1763200288489,-500.0,0.00050136,120]
[394026165,1763200288499,-2689.19,0.00050136,120]
[394026166,1763200288509,-500.0,0.00050136,120]
[394026167,1763200288518,-500.0,0.00050136,120]
[394026168,1763200288527,-1158.62,0.00050136,120]
[394026169,1763200288536,-520.26,0.00050136,120]
[394026170,1763200288546,-500.0,0.00050136,120]
[394026171,1763200288556,-500.0,0.00050136,120]
[394026172,1763200288565,-500.0,0.00050136,120]
[394026173,1763200288575,-777.19,0.00050136,120]
[394026174,1763200288584,-500.0,0.00050136,120]
[394026175,1763200288593,-500.0,0.00050136,120]
[394026176,1763200288602,-500.0,0.00050136,120]
[394026177,1763200288612,-500.0,0.00050136,120]
[394026178,1763200288621,-500.0,0.00050136,120]
[394026179,1763200288631,-500.0,0.00050136,120]
[394026180,1763200288640,-500.0,0.00050136,120]
[394026181,1763200288649,-500.0,0.00050136,120]
[394026182,1763200288659,-1619.88,0.00050136,30]
[394026183,1763200288668,-1089.69,0.00050136,120]
[394026184,1763200288678,-500.0,0.00050136,120]
[394026185,1763200288687,-500.0,0.00050136,120]
[394026186,1763200288697,-576.07,0.00050136,120]
[394026187,1763200288706,-500.0,0.00050136,120]
[394026188,1763200288718,-502.2782758,0.00050136,120]
[394026189,1763200288727,-500.0,0.00050136,120]
[394026190,1763200288737,-1298.65,0.00050136,120]
[394026191,1763200288746,-527.42,0.00050136,120]
[394026192,1763200288775,-500.0,0.00050136,120]
[394026193,1763200288785,-1477.9,0.00050136,120]
[394026194,1763200288796,-2380.54,0.00050136,120]
[394026195,1763200288805,-500.0,0.00050136,120]
[394026196,1763200288815,-500.0,0.00050136,120]
[394026197,1763200288824,-500.0,0.00050136,120]
[394026198,1763200288833,-500.0,0.00050136,120]
[394026199,1763200288843,-745.02,0.00050136,120]
[394026200,1763200288852,-979.94,0.00050136,120]
[394026201,1763200288861,-500.0,0.00050136,120]
[394026202,1763200288870,-500.41,0.00050136,120]
[394026203,1763200288879,-500.0,0.00050136,120]
[394026204,1763200288888,-500.0,0.00050136,120]
[394026205,1763200288897,-500.0,0.00050136,120]
[394026206,1763200288906,-500.0,0.00050136,120]
[394026207,1763200288916,-500.0,0.00050136,120]
[394026208,1763200288925,-507.72,0.00050136,120]
[394026209,1763200288937,-500.0,0.00050136,120]
[394026210,1763200288946,-500.0,0.00050136,120]
[394026211,1763200288955,-539.7,0.00050136,120]
[394026212,1763200288964,-500.0,0.00050136,120]
[394026213,1763200288973,-789.21,0.00050136,120]
[394026214,1763200288983,-545.70922444,0.00050136,120]
[394026215,1763200288991,-500.0,0.00050136,120]
[394026216,1763200289003,-500.0,0.00050136,120]
[394026217,1763200289012,-500.0,0.00050136,120]
[394026218,1763200289020,-500.0,0.00050136,120]
[394026219,1763200289029,-548.25574375,0.00050136,120]
[394026220,1763200289038,-937.06,0.00050136,120]
[394026221,1763200289047,-500.0,0.00050136,120]
[394026222,1763200289056,-500.0,0.00050136,120]
[394026223,1763200289065,-571.26,0.00050136,120]
[394026224,1763200289074,-523.49,0.00050136,120]
[394026225,1763200289083,-500.0,0.00050136,120]
[394026226,1763200289091,-500.0,0.00050136,120]
[394026227,1763200289100,-840.74,0.00050136,120]
[394026228,1763200289110,-500.0,0.00050136,120]
[394026229,1763200289119,-502.90619454,0.00050136,120]
[394026230,1763200289127,-839.73,0.00050136,120]
[394026231,1763200289136,-500.0,0.00050136,120]
[394026232,1763200289145,-500.0,0.00050136,120]
[394026233,1763200289155,-548.3,0.00050136,120]
[394026234,1763200289164,-500.0,0.00050136,120]
[394026235,1763200289173,-533.64,0.00050136,120]
[394026236,1763200289182,-500.0,0.00050136,120]
[394026237,1763200289191,-508.21312285,0.00050136,120]
[394026238,1763200289203,-500.0,0.00050136,120]
[394026239,1763200289212,-1390.62,0.00050136,120]
[394026240,1763200289221,-500.0,0.00050136,120]
[394026241,1763200289230,-572.61,0.00050136,120]
[394026242,1763200289239,-1276.71,0.00050136,120]
[394026243,1763200289249,-500.0,0.00050136,120]
[394026244,1763200289258,-945.13,0.00050136,120]
[394026245,1763200289267,-1188.94,0.00050136,120]
[394026246,1763200289276,-500.0,0.00050136,120]
[394026247,1763200289288,-1077.77,0.00050136,120]
[394026248,1763200289297,-500.0,0.00050136,120]
[394026249,1763200289306,-500.0,0.00050136,120]
[394026250,1763200289315,-500.0,0.00050136,120]
[394026251,1763200289324,-1791.91,0.00050136,120]
[394026252,1763200289333,-500.0,0.00050136,120]
[394026253,1763200289342,-500.0,0.00050136,120]
[394026254,1763200289351,-500.0,0.00050136,120]
[394026255,1763200289360,-500.0,0.00050136,120]
[394026256,1763200289369,-500.0,0.00050136,120]
[394026257,1763200289429,-500.0,0.00050136,120]
[394026258,1763200289439,-500.0,0.00050136,120]
[394026259,1763200289447,-500.0,0.00050136,120]
[394026260,1763200289456,-1017.14,0.00050136,120]
[394026261,1763200289466,-500.0,0.00050136,120]
[394026262,1763200289475,-500.0,0.00050136,120]
[394026263,1763200289490,-500.0,0.00050136,120]
[394026264,1763200289505,-500.0,0.00050136,120]
[394026265,1763200289514,-500.0,0.00050136,120]
[394026266,1763200289523,-936.67,0.00050136,120]
[394026267,1763200289532,-500.0,0.00050136,120]
[394026268,1763200289541,-500.0,0.00050136,120]
[394026269,1763200289551,-500.0,0.00050136,120]
[394026270,1763200289560,-649.89,0.00050136,120]
[394026271,1763200289570,-1776.75,0.00050136,120]
[394026272,1763200289578,-500.0,0.00050136,120]
[394026273,1763200289587,-500.0,0.00050136,120]
[394026274,1763200289596,-500.0,0.00050136,120]
[394026275,1763200289606,-500.0,0.00050136,120]
[394026276,1763200289615,-500.0,0.00050136,120]
[394026277,1763200289624,-500.0,0.00050136,120]
[394026278,1763200289633,-500.0,0.00050136,120]
[394026279,1763200289643,-500.0,0.00050136,60]
[394026280,1763200289655,-500.0,0.00050136,120]
[394026281,1763200289665,-532.97,0.00050136,120]
[394026282,1763200289674,-500.0,0.00050136,120]
[394026283,1763200289682,-777.09,0.00050136,120]
[394026284,1763200289692,-500.0,0.00050136,120]
[394026285,1763200289701,-500.0,0.00050136,120]
[394026286,1763200289710,-500.0,0.00050136,120]
[394026287,1763200289719,-500.0,0.00050136,120]
[394026288,1763200289728,-502.51697739,0.00050136,120]
[394026289,1763200289738,-1276.7,0.00050136,7]
[394026290,1763200289747,-927.9,0.00050136,120]
[394026291,1763200289757,-524.65733065,0.00050136,120]
[394026292,1763200289766,-500.0,0.00050136,120]
[394026293,1763200289775,-979.1,0.00050136,120]
[394026294,1763200289783,-769.66,0.00050136,120]
[394026295,1763200289793,-500.0,0.00050136,120]
[394026296,1763200289801,-500.0,0.00050136,120]
[394026297,1763200289811,-500.0,0.00050136,120]
[394026298,1763200289820,-500.0,0.00050136,120]
[394026299,1763200289828,-500.0,0.00050136,120]
[394026300,1763200289837,-609.02,0.00050136,120]
[394026301,1763200289846,-500.0,0.00050136,10]
[394026302,1763200289855,-500.0,0.00050136,120]
[394026303,1763200289863,-500.0,0.00050136,120]
[394026304,1763200289873,-500.0,0.00050136,120]
[394026305,1763200289881,-624.67,0.00050136,120]
[394026306,1763200289891,-500.0,0.00050136,120]
[394026307,1763200289900,-500.0,0.00050136,120]
[394026308,1763200289909,-500.0,0.00050136,120]
[394026309,1763200289918,-500.0,0.00050136,120]
[394026310,1763200289927,-500.0,0.00050136,120]
[394026311,1763200289936,-500.0,0.00050136,120]
[394026312,1763200289945,-500.0,0.00050136,120]
[394026313,1763200289954,-745.41,0.00050136,120]